fUSD/lending_fUSD_20250904
["ID","MTS","AMOUNT","RATE_DAILY","PERIOD"]
[383596930,1757016641550,-400.0,0.00027998,2]
[383596931,1757016641561,-400.0,0.00027998,2]
[383596932,1757016641571,-400.0,0.00027998,2]
[383596933,1757016641580,-400.0,0.00027998,2]
[383596934,1757016641590,-400.0,0.00027998,2]
[383596935,1757016641600,-400.0,0.00027998,2]
[383596936,1757016641610,-400.0,0.00027998,2]
[383596937,1757016641620,-400.0,0.00027998,2]
[383596938,1757016641630,-400.0,0.00027998,2]
[383596939,1757016641640,-400.0,0.00027998,2]
[383596940,1757016641650,-400.0,0.00027998,2]
[383596941,1757016641660,-400.0,0.00027998,2]
[383596942,1757016641670,-400.0,0.00027998,2]
[383596943,1757016641680,-400.0,0.00027998,2]
[383596944,1757016641690,-400.0,0.00027998,2]
[383596945,1757016641701,-400.0,0.00027998,2]
[383596946,1757016641711,-400.0,0.00027998,2]
[383596947,1757016641721,-400.0,0.00027998,2]
[383596948,1757016641731,-400.0,0.00027998,2]
[383596949,1757016641740,-400.0,0.00027998,2]
[383596950,1757016641750,-400.0,0.00027998,2]
[383596951,1757016641763,-400.0,0.00027998,2]
[383596952,1757016641773,-400.0,0.00027998,2]
[383596953,1757016641783,-400.0,0.00027998,2]
[383596954,1757016641793,-400.0,0.00027998,2]
[383596955,1757016641802,-400.0,0.00027998,2]
[383596956,1757016641812,-400.0,0.00027998,2]
[383596957,1757016641822,-400.0,0.00027998,2]
[383596958,1757016641832,-400.0,0.00027998,2]
[383596959,1757016641841,-400.0,0.00027998,2]
[383596960,1757016641851,-400.0,0.00027998,2]
[383596961,1757016641861,-400.0,0.00027998,2]
[383596962,1757016641870,-400.0,0.00027998,2]
[383596963,1757016641880,-333.364,0.00028057,18]
[383596964,1757016641890,-388.0,0.000281,2]
[383596965,1757016641899,-26005.9148893,0.00028111,3]
[383596966,1757016641909,-21493.67248912,0.00028118,2]
[383596967,1757016641919,-10196.56505891,0.00028127,2]
[383596968,1757016641929,-77642.52730094,0.00028142,3]
[383596969,1757016642206,-375.21736706,0.00028142,3]
[383596970,1757016642216,-14481.97128299,0.00028142,3]
[383596971,1757016642227,-86649.13706472,0.00028142,3]
[383596972,1757016642239,-4106.81844171,0.00028142,3]
[383596973,1757016642252,-3155.14298058,0.00028142,3]
[383596974,1757016642262,-2448.85262165,0.00028152,3]
[383596975,1757016642273,-1035.78,0.00028152,3]
[383596976,1757016642285,-1110.67938059,0.00028152,3]
[383596977,1757016642298,-281.8184701,0.00028152,3]
[383596978,1757016642310,-14404.964211,0.00028152,3]
[383596979,1757016642322,-1774.89717535,0.00028152,3]
[383596984,1757016642652,-1000.0,0.00027888,2]
[383596985,1757016642662,-169.52993301,0.00028004,2]
[383596986,1757016642672,-43.60549374,0.00028152,3]
[383596987,1757016642684,-1937.38415492,0.00028152,3]
[383596988,1757016642696,-4535.95065208,0.00028152,3]
[383596989,1757016642707,-327.13118913,0.00028152,3]
[383596990,1757016642719,-5413.2909732,0.00028152,3]
[383596991,1757016642732,-2208.180424,0.00028152,3]
[383596992,1757016642744,-10290.0,0.00028152,3]
[383596994,1757016642755,-28301.84366798,0.00028152,3]
[383596996,1757016642768,-29909.28114326,0.00028152,3]
[383596997,1757016642777,-25708.21885674,0.00028152,3]
[383596998,1757016642790,-260.75648154,0.00028152,3]
[383597000,1757016642802,-820.21861017,0.00028152,3]
[383597002,1757016642814,-6575.06588563,0.00028152,3]
[383597005,1757016642830,-656.60223961,0.00028152,3]
[383597010,1757016642896,-400.0,0.00027987,2]
[383597011,1757016642906,-169.52993301,0.00028045,2]
[383597012,1757016642915,-561.36676781,0.00028152,3]
[383597013,1757016642928,-649.57290012,0.00028152,3]
[383597014,1757016642940,-441.44,0.00028152,3]
[383597097,1757016644212,-1411.7091,0.00028152,3]
[383597098,1757016644225,-49629.50497458,0.00028152,3]
[383597099,1757016644235,-323.58509157,0.00028152,2]
[383597100,1757016644244,-771.33703386,0.00028152,2]
[383597101,1757016644254,-500.0,0.00028157,15]
[383597102,1757016644263,-191047.5943,0.00028162,2]
[383597103,1757016644273,-500.0,0.00028173,5]
[383597104,1757016644284,-500.0,0.00028173,2]
[383597105,1757016644294,-500.0,0.00028173,5]
[383597106,1757016644303,-500.0,0.00028173,5]
[383597107,1757016644312,-5931.70156381,0.00028231,9]
[383597108,1757016644322,-26005.9148893,0.00028232,3]
[383597109,1757016644331,-21678.6139541,0.00028232,3]
[383597110,1757016644341,-156.3,0.00028235,2]
[383597111,1757016644350,-52011.8297787,0.00028242,3]
[383597112,1757016644360,-43357.2279081,0.00028242,3]
[383597113,1757016644370,-21678.6139541,0.00028242,3]
[383597114,1757016644379,-26005.9148893,0.00028251,3]
[383597115,1757016644389,-21678.6139541,0.00028251,3]
[383597116,1757016644399,-52011.8297787,0.00028252,3]
[383597117,1757016644408,-43357.2279081,0.00028252,3]
[383597118,1757016644418,-14933.62160438,0.00028252,3]
[383597121,1757016645842,-215.41138992,0.00027987,2]
[383597122,1757016645853,-400.0,0.00027997,2]
[383597123,1757016645863,-169.52993301,0.00028086,2]
[383597124,1757016645873,-12462.12263584,0.00028252,3]
[383597125,1757016645886,-1183.76857874,0.00028252,3]
[383597126,1757016645897,-12603.0242821,0.00028252,3]
[383597127,1757016645948,-542.45161396,0.00028252,3]
[383597128,1757016645959,-4765.42323453,0.00028252,3]
[383597129,1757016645971,-5521.41782915,0.00028252,3]
[383597130,1757016645981,-68.21870355,0.00028252,3]
[383597131,1757016645997,-9715.00003,0.00028252,3]
[383597132,1757016646009,-1341.60089404,0.00028252,3]
[383597133,1757016646161,-6856.66621636,0.00028252,3]
[383597134,1757016646214,-390.45237608,0.00028252,3]
[383597135,1757016646226,-1605.50585559,0.00028252,3]
[383597137,1757016646271,-27028.40428688,0.00028252,3]
[383597138,1757016646284,-632.96100502,0.00028252,3]
[383597144,1757017009139,180.63,0.00026034,120]
[383597145,1757017221826,1000.0,0.00027,120]
[383597146,1757017222252,1000.0,0.000286,120]
[383597147,1757017341440,494.65,0.00013092,2]
[383597148,1757017341662,494.65,0.00013781,2]
[383597149,1757017341904,494.65,0.0001447,2]
[383597150,1757017342120,494.65,0.00015159,2]
[383597151,1757017342371,494.65,0.00015848,2]
[383597152,1757017342563,494.65,0.00016537,2]
[383597153,1757017342764,494.65,0.00017226,2]
[383597154,1757017342972,494.65,0.00017915,2]
[383597155,1757017343400,494.65,0.00018604,2]
[383597156,1757017343503,494.65,0.00019293,2]
[383597157,1757017343617,494.65,0.00019982,2]
[383597158,1757017358562,154.19,0.00013699,2]
[383597164,1757017555944,57067.22299678,0.000199,2]
[383597171,1757017657318,9457.26284103,0.00018,2]
[383597173,1757017678225,125777.77261796,0.0002,2]
[383597181,1757017832074,-153.6890531,0.00020667,2]
[383597182,1757017832084,-494.65,0.00020671,2]
[383597183,1757017832093,-494.65,0.0002136,2]
[383597184,1757017832103,-153.831926,0.00021917,2]
[383597185,1757017832113,-214.390881,0.00021917,2]
[383597186,1757017832123,-167.896042,0.00021917,2]
[383597187,1757017832133,-154.19,0.00021918,2]
[383597188,1757017832142,-1200.0,0.00021999,2]
[383597189,1757017832152,-696.11456955,0.00022,14]
[383597190,1757017832162,-4475.15522104,0.00022,4]
[383597191,1757017832172,-494.65,0.00022049,2]
[383597192,1757017832182,-251.39,0.000221,2]
[383597193,1757017832194,-150.0,0.000222,2]
[383597194,1757017832205,-494.65,0.00022739,2]
[383597195,1757017832214,-3010.21128815,0.00022827,2]
[383597196,1757017832224,-494.65,0.00023428,2]
[383597197,1757017832235,-3710.62702567,0.00024,5]
[383597198,1757017832259,-1162.14564809,0.00024,5]
[383597199,1757017832271,-127.23071855,0.00024,5]
[383597200,1757017832280,-251.39,0.00024,2]
[383597201,1757017832289,-8.87128146,0.00024018,2]
[383597202,1757017832311,-912.83267843,0.00024018,2]
[383597203,1757017832458,-407.87459871,0.00024018,2]
[383597204,1757017832470,-350.4214414,0.00024018,2]
[383597205,1757017832480,-143.18870102,0.00024117,2]
[383597343,1757017838124,-298.79986842,0.00020666,2]
[383597344,1757017838134,-150.0,0.00020666,2]
[383597345,1757017838145,-351.46129898,0.00024117,2]
[383597346,1757017838154,-199.7388326,0.00024163,2]
[383597347,1757017838165,-4800.2611674,0.00024163,2]
[383597348,1757017838175,-192.37,0.00024186,2]
[383597349,1757017838185,-250.0,0.00024653,2]
[383597350,1757017838194,-190.08,0.00024658,2]
[383597351,1757017838202,-494.65,0.00024806,2]
[383597352,1757017838212,-5104.04052222,0.000249,2]
[383597353,1757017838221,-883.64,0.00025,7]
[383597354,1757017838231,-156.86,0.00025277,2]
[383597355,1757017838241,-666.0,0.00025321,3]
[383597356,1757017838250,-212.59699798,0.00025434,2]
[383597357,1757017838262,-160.0,0.00025434,2]
[383597358,1757017838271,-494.65,0.00025495,2]
[383597359,1757017838281,-160.0,0.00025537,7]
[383597361,1757017838292,-150.0,0.00025668,4]
[383597363,1757017838301,-150.0,0.00025668,4]
[383597365,1757017838311,-150.0,0.00025668,4]
[383597367,1757017838320,-150.0,0.00025668,4]
[383597369,1757017838330,-150.0,0.00025668,4]
[383597371,1757017838340,-150.0,0.00025668,4]
[383597373,1757017838349,-150.0,0.00025668,4]
[383597375,1757017838359,-150.0,0.00025668,4]
[383597377,1757017838368,-176.73677702,0.00025668,4]
[383597379,1757017838378,-150.0,0.00025668,4]
[383597381,1757017838387,-150.0,0.00025668,4]
[383597384,1757017838396,-150.0,0.00025668,4]
[383597387,1757017838406,-150.0,0.00025668,4]
[383597389,1757017838416,-514.64478986,0.00025777,2]
[383597391,1757017838425,-160.0,0.00025777,2]
[383597393,1757017838434,-3956.47,0.00025786,2]
[383597395,1757017838444,-150.0,0.00025906,4]
[383597397,1757017838453,-156.48916896,0.00025976,2]
[383597400,1757017838462,-588.09658462,0.0002599,2]
[383597402,1757017838472,-883.64,0.00026,7]
[383597404,1757017838481,-1023.19,0.00026,2]
[383597406,1757017838490,-4428.76451128,0.00026,2]
[383597408,1757017838500,-94838.72255858,0.00026,7]
[383597411,1757017838512,-2260.27153239,0.00026,7]
[383597413,1757017838522,-825.00029,0.00026,21]
[383597415,1757017838531,-4433.65,0.00026,2]
[383597417,1757017838540,-2672.64587939,0.00026,2]
[383597419,1757017838550,-211.94956227,0.00026,2]
[383597421,1757017838559,-212.59699798,0.00026,7]
[383597423,1757017838568,-251.39,0.00026,7]
[383597424,1757017838577,-5104.04052201,0.0002601,4]
[383597426,1757017838589,-150.0,0.00026076,4]
[383597428,1757017838598,-600.0,0.00026083,2]
[383597430,1757017838608,-1148.96723499,0.00026098,2]
[383597432,1757017838617,-1175.0,0.00026099,2]
[383597434,1757017838626,-896.0,0.00026099,2]
[383597436,1757017838637,-1258.0,0.00026099,2]
[383597438,1757017838647,-224.958,0.00026099,2]
[383597440,1757017838656,-39.55112408,0.00026099,2]
[383597583,1757017840052,-476.1899999,0.00026099,2]
[383597584,1757017840109,-3647.25887602,0.00026099,2]
[383597585,1757017840119,-150.0,0.00026144,4]
[383597586,1757017840129,-500.0,0.0002618,2]
[383597587,1757017840138,-500.0,0.0002618,2]
[383597588,1757017840148,-494.65,0.00026184,2]
[383597589,1757017840158,-156.48916893,0.00026195,2]
[383597590,1757017840167,-2351.0,0.00026222,2]
[383597591,1757017840178,-500.0,0.00026225,2]
[383597592,1757017840189,-500.0,0.00026225,2]
[383597593,1757017840199,-500.0,0.00026225,2]
[383597594,1757017840209,-150.0,0.00026382,4]
[383597595,1757017840220,-3127.87195505,0.000264,2]
[383597596,1757017840271,-399.27198735,0.000264,2]
[383597597,1757017840283,-23390.88747664,0.000264,2]
[383597598,1757017840294,-156.48916893,0.00026413,2]
[383597599,1757017840304,-150.0,0.00026483,4]
[383597600,1757017840314,-10535.72515795,0.000265,2]
[383597601,1757017840326,-518.02677146,0.000265,2]
[383597610,1757017843102,-11948.07525082,0.000265,2]
[383597645,1757017846219,-8210.65916434,0.000265,2]
[383597651,1757017956528,500.0,0.00019178,2]
[383597652,1757018398368,377.89,0.00012791,2]
[383597653,1757018398582,377.89,0.00013464,2]
[383597654,1757018398834,377.89,0.00014137,2]
[383597655,1757018399063,377.89,0.0001481,2]
[383597656,1757018399301,377.89,0.00015484,2]
[383597657,1757018399526,377.89,0.00016157,2]
[383597658,1757018399727,377.89,0.0001683,2]
[383597659,1757018400160,377.89,0.00017503,2]
[383597660,1757018400391,377.89,0.00018176,2]
[383597661,1757018400609,377.89,0.0001885,2]
[383597662,1757018400866,377.89,0.00019523,2]
[383597663,1757018481031,154.37,0.00013699,2]
[383597679,1757019032279,-288.643332,0.00020095,2]
[383597709,1757019032792,-250.0,0.0002012,2]
[383597712,1757019032802,-160.92006379,0.00020144,2]
[383597715,1757019032811,-195.0,0.00020145,2]
[383597718,1757019032821,-300.0,0.00020194,2]
[383597721,1757019032831,-1200.0,0.00020194,2]
[383597724,1757019032840,-377.89,0.00020196,2]
[383597727,1757019032849,-188.72,0.00020275,2]
[383597730,1757019032858,-150.0,0.00020645,2]
[383597732,1757019032868,-151.0,0.00020646,2]
[383597735,1757019032877,-151.0,0.00020646,2]
[383597738,1757019032886,-151.0,0.00020646,2]
[383597741,1757019032895,-151.0,0.00020646,2]
[383597744,1757019032905,-151.0,0.00020646,2]
[383597747,1757019032914,-151.0,0.00020646,2]
[383597749,1757019032923,-151.0,0.00020646,2]
[383597751,1757019032932,-151.0,0.00020646,2]
[383597753,1757019032941,-151.0,0.00020646,2]
[383597756,1757019032950,-151.0,0.00020646,2]
[383597759,1757019032960,-151.0,0.00020646,2]
[383597761,1757019032970,-151.0,0.00020646,2]
[383597765,1757019032979,-151.0,0.00020646,2]
[383597768,1757019032989,-151.0,0.00020646,2]
[383597771,1757019032998,-151.0,0.00020646,2]
[383597774,1757019033007,-151.0,0.00020646,2]
[383597777,1757019033017,-151.0,0.00020646,2]
[383597780,1757019033027,-151.0,0.00020646,2]
[383597783,1757019033040,-151.0,0.00020646,2]
[383597786,1757019033050,-151.0,0.00020646,2]
[383597789,1757019033060,-500.0,0.000207,2]
[383597792,1757019033069,-500.0,0.000207,2]
[383597794,1757019033080,-377.89,0.00020869,2]
[383597797,1757019033090,-377.89,0.00021542,2]
[383597800,1757019033100,-3581.71823385,0.00021677,2]
[383597803,1757019033113,-420.0,0.00021985,2]
[383597806,1757019033122,-211.15895564,0.00022088,2]
[383597808,1757019033131,-843.79118675,0.00022088,2]
[383597812,1757019033141,-725.85885698,0.00022088,2]
[383597815,1757019033153,-1680.0,0.0002209,2]
[383597818,1757019033163,-216.36,0.000221,2]
[383597821,1757019033173,-150.0,0.00022104,4]
[383597823,1757019033183,-300.0,0.00022104,2]
[383597824,1757019033194,-195.0,0.00022104,2]
[383597826,1757019033204,-300.0,0.00022104,2]
[383597828,1757019033213,-250.0,0.00022104,2]
[383597830,1757019033223,-377.89,0.00022216,2]
[383597832,1757019033233,-150.0,0.000224,2]
[383597834,1757019033243,-154.37,0.00022505,2]
[383597836,1757019033252,-377.89,0.00022889,2]
[383597838,1757019033263,-377.89,0.00023562,2]
[383597840,1757019033273,-587.0,0.00023934,2]
[383597842,1757019033282,-500.0,0.00023945,2]
[383597845,1757019033291,-216.36,0.00024,2]
[383597848,1757019033301,-305.18954119,0.00024005,2]
[383597851,1757019033310,-244.0,0.00024164,2]
[383597854,1757019033320,-377.89,0.00024235,2]
[383597857,1757019033329,-505.47228485,0.00024342,2]
[383597860,1757019033339,-1715.83686399,0.0002452,2]
[383597863,1757019033348,-190.08,0.00024658,2]
[383597866,1757019033358,-209.32,0.00024806,2]
[383597869,1757019033367,-4678.95792698,0.000249,2]
[383597872,1757019033377,-377.89,0.00024908,2]
[383597874,1757019033386,-250.0,0.00024958,2]
[383597877,1757019033396,-387.0,0.00025,2]
[383597880,1757019033406,-1734.77,0.00025124,2]
[383597883,1757019033415,-666.0,0.00025211,3]
[383597886,1757019033425,-163.63,0.00025227,2]
[383597889,1757019033434,-160.0,0.00025275,7]
[383597892,1757019033444,-150.0,0.00025348,4]
[383597895,1757019033454,-150.0,0.00025348,4]
[383597898,1757019033464,-150.0,0.00025348,4]
[383597901,1757019033474,-150.0,0.00025348,4]
[383597904,1757019033484,-150.0,0.00025348,4]
[383597907,1757019033493,-150.0,0.00025348,4]
[383597909,1757019033502,-278.63823656,0.00025348,4]
[383597911,1757019033512,-150.0,0.00025348,4]
[383597913,1757019033522,-150.0,0.00025348,4]
[383597915,1757019033531,-150.0,0.00025348,4]
[383597917,1757019033540,-150.0,0.00025434,2]
[383597919,1757019033550,-150.0,0.00025434,2]
[383597920,1757019033559,-150.0,0.00025434,2]
[383597922,1757019033569,-150.0,0.00025434,2]
[383597924,1757019033579,-150.0,0.00025434,2]
[383597926,1757019033588,-150.0,0.00025434,2]
[383597928,1757019033597,-150.0,0.00025434,2]
[383597930,1757019033607,-150.0,0.00025434,2]
[383597932,1757019033617,-150.0,0.00025434,2]
[383597933,1757019033627,-150.0,0.00025434,2]
[383597934,1757019033636,-150.0,0.00025434,2]
[383597935,1757019033645,-150.0,0.00025434,2]
[383597936,1757019033655,-212.59699798,0.00025505,2]
[383597937,1757019033664,-514.64478986,0.00025505,2]
[383597938,1757019033674,-160.0,0.00025511,2]
[383597939,1757019033683,-377.89,0.00025582,2]
[383597940,1757019033692,-15458.04,0.00025641,2]
[383597941,1757019033702,-150.0,0.000257,4]
[383597942,1757019033712,-150.0,0.00025708,2]
[383597943,1757019033722,-150.0,0.00025708,2]
[383597944,1757019033732,-150.0,0.00025708,2]
[383597945,1757019033741,-150.0,0.00025708,2]
[383597946,1757019033750,-150.0,0.00025708,2]
[383597947,1757019033760,-192.33,0.0002575,2]
[383597948,1757019033770,-736.21,0.0002584,2]
[383597949,1757019033779,-200.0,0.00025982,2]
[383597950,1757019033789,-150.0,0.00025982,2]
[383597951,1757019033798,-150.0,0.00025982,2]
[383597952,1757019033808,-244.0,0.00025982,2]
[383597953,1757019033818,-150.0,0.00025982,2]
[383597954,1757019033828,-216.36,0.00026,7]
[383597955,1757019033837,-4678.95792693,0.0002601,4]
[383597956,1757019033847,-322.6107,0.00026045,2]
[383597957,1757019033856,-670.58624095,0.00026045,2]
[383597958,1757019033866,-257.91778498,0.00026045,2]
[383597959,1757019033878,-150.0,0.00026052,4]
[383597960,1757019033889,-150.0,0.00026052,4]
[383597961,1757019033898,-823.0,0.00026056,2]
[383597962,1757019033907,-300.0,0.000261,2]
[383597963,1757019033917,-14418.27017612,0.0002614,2]
[383597964,1757019033930,-305.60000004,0.0002614,2]
[383597965,1757019033945,-1911.83322866,0.0002614,2]
[383597966,1757019033966,-300.0,0.0002614,2]
[383597967,1757019033997,-294.84302077,0.00020119,2]
[383597968,1757019034009,-205.15697923,0.00020119,2]
[383597969,1757019034019,-500.0,0.00020119,2]
[383597970,1757019034028,-500.0,0.00020119,2]
[383597971,1757019034038,-529.8191508,0.0002614,2]
[383597972,1757019034049,-1391.7294,0.0002614,2]
[383597973,1757019034082,-222.06790183,0.00020119,2]
[383597974,1757019034092,-500.0,0.00020119,2]
[383597975,1757019034102,-3997.32938378,0.0002614,2]
[383597976,1757019034112,-3024.9786815,0.0002614,2]
[383597977,1757019034121,-379.0,0.0002618,2]
[383597978,1757019034131,-162.12,0.00026239,2]
[383597979,1757019034140,-3378.40128419,0.0002624,2]
[383597980,1757019034150,-150.0,0.00026256,2]
[383597981,1757019034159,-176.501961,0.00026256,2]
[383597982,1757019034169,-200.0,0.00026256,2]
[383597983,1757019034179,-1258.0,0.00026269,2]
[383597984,1757019034188,-2035.0,0.00026269,2]
[383597985,1757019034198,-600.0,0.00026269,2]
[383597986,1757019034207,-567.0,0.00026269,2]
[383597987,1757019034217,-1300.0,0.00026269,2]
[383597988,1757019034227,-1577.0,0.00026269,2]
[383597989,1757019034236,-811.0,0.00026269,2]
[383597990,1757019034246,-724.0,0.00026269,2]
[383597991,1757019034256,-4163.0,0.00026269,2]
[383597992,1757019034266,-200.0,0.00026269,2]
[383597993,1757019034275,-896.0,0.00026269,2]
[383597994,1757019034285,-150.0,0.00026404,4]
[383597995,1757019034294,-13441.54475633,0.000265,2]
[383597996,1757019034321,-500.0,0.00020119,2]
[383597997,1757019034330,-777.10219932,0.000265,2]
[383597998,1757019034342,-411.75610827,0.000265,2]
[383597999,1757019034353,-317.91518327,0.000265,2]
[383598004,1757019038329,-500.0,0.00020119,2]
[383598005,1757019038339,-475.54921721,0.00020119,2]
[383598006,1757019038348,-151.009,0.00026269,2]
[383598007,1757019038358,-201.094,0.00026269,2]
[383598008,1757019038367,-639.76778379,0.00026269,2]
[383598228,1757019453180,169.56,0.00012264,2]
[383598229,1757019453726,169.56,0.0001291,2]
[383598230,1757019453780,169.56,0.00013555,2]
[383598231,1757019453861,169.56,0.00014201,2]
[383598232,1757019454079,169.56,0.00014846,2]
[383598233,1757019454321,169.56,0.00015492,2]
[383598234,1757019454760,169.56,0.00016137,2]
[383598235,1757019455190,169.56,0.00016783,2]
[383598236,1757019455724,169.56,0.00017428,2]
[383598237,1757019455765,169.56,0.00018074,2]
[383598238,1757019455928,169.56,0.00018719,2]
[383598239,1757019456133,169.56,0.00019365,2]
[383598240,1757019456370,169.56,0.0002001,2]
[383598241,1757019516921,500.0,0.00019178,2]
[383598243,1757019631110,154.52,0.00013699,2]
[383598248,1757019724720,150.0,0.00022721,120]
[383598249,1757019724830,150.0,0.00020816,120]
[383598250,1757019725040,150.0,0.000211,120]
[383598264,1757019996009,500.0,0.00019178,2]
[383598271,1757020231708,-307.78459871,0.00020656,2]
[383598272,1757020232222,-169.56,0.00020656,2]
[383598273,1757020232232,-275.06102413,0.00020813,2]
[383598274,1757020232242,-250.0,0.00020815,2]
[383598275,1757020232251,-169.56,0.00021301,2]
[383598276,1757020232262,-250.0,0.00021395,2]
[383598277,1757020232272,-169.56,0.00021946,2]
[383598278,1757020232281,-619.57,0.000221,2]
[383598279,1757020232291,-151.0,0.00022354,2]
[383598280,1757020232300,-151.0,0.00022392,2]
[383598281,1757020232310,-169.56,0.00022592,2]
[383598282,1757020232319,-1200.0,0.0002272,2]
[383598283,1757020232328,-300.0,0.0002272,2]
[383598284,1757020232338,-150.0,0.00022721,2]
[383598285,1757020232348,-1675.49150773,0.00022721,2]
[383598286,1757020232375,-736.29670004,0.00022721,2]
[383598287,1757020232409,-88.21179223,0.00022721,2]
[383598288,1757020232420,-250.0,0.00022721,2]
[383598289,1757020232431,-82.85134816,0.00022721,2]
[383598290,1757020232443,-217.14865184,0.00022721,2]
[383598291,1757020232453,-195.0,0.00022721,2]
[383598292,1757020232463,-154.52,0.00023182,2]
[383598293,1757020232472,-99.19934816,0.00023237,2]
[383598294,1757020232484,-70.36065184,0.00023237,2]
[383598295,1757020232493,-350.44847816,0.00023518,2]
[383598303,1757020237497,-2659.76280999,0.00023518,2]
[383598304,1757020237508,-875.0,0.00023533,2]
[383598305,1757020237518,-1500.0,0.000236,2]
[383598306,1757020237528,-150.0,0.000236,2]
[383598307,1757020237538,-209.32,0.00023625,2]
[383598308,1757020237548,-821.81,0.00023726,2]
[383598309,1757020237557,-1600.0,0.00023871,2]
[383598310,1757020237567,-28678.92,0.00023872,2]
[383598311,1757020237576,-169.56,0.00023883,2]
[383598312,1757020237586,-619.57,0.00024,2]
[383598313,1757020237595,-180.66,0.00024082,2]
[383598314,1757020237604,-169.56,0.00024528,2]
[383598315,1757020237614,-750.0,0.00024611,2]
[383598316,1757020237624,-821.81,0.00024616,2]
[383598317,1757020237634,-1497.89,0.00024625,2]
[383598318,1757020237643,-420.0,0.00024671,2]
[383598319,1757020237653,-165.33,0.00024757,2]
[383598320,1757020237665,-1680.0,0.00024786,2]
[383598321,1757020237675,-1387.42193175,0.00024811,2]
[383598339,1757020239845,-836.09514378,0.00024811,2]
[383598340,1757020239902,-27776.48292447,0.00024811,2]
[383598341,1757020239912,-5406.37335911,0.00024811,2]
[383598342,1757020239922,-5417.73504196,0.000249,2]
[383598343,1757020239931,-288.18,0.00024962,2]
[383598344,1757020239941,-4401.44,0.00025,7]
[383598345,1757020239950,-567.0,0.00025142,2]
[383598346,1757020239960,-1300.0,0.00025142,2]
[383598347,1757020239969,-600.0,0.00025142,2]
[383598348,1757020239978,-1577.0,0.00025142,2]
[383598349,1757020239987,-811.0,0.00025142,2]
[383598350,1757020239997,-1460.17,0.00025286,2]
[383598351,1757020240006,-160.0,0.00025286,7]
[383598352,1757020240016,-1000.0,0.00025286,2]
[383598353,1757020240026,-180.66,0.00025287,2]
[383598354,1757020240035,-150.0,0.00025348,4]
[383598355,1757020240044,-150.0,0.00025348,4]
[383598356,1757020240053,-150.00000001,0.00025348,4]
[383598357,1757020240063,-150.0,0.00025348,4]
[383598358,1757020240072,-150.00000001,0.00025348,4]
[383598360,1757020240082,-821.81,0.00025505,2]
[383598362,1757020240091,-212.59699798,0.00025506,2]
[383598364,1757020240100,-152.10656846,0.00025507,3]
[383598408,1757020242597,-847.89343154,0.00025507,3]
[383598409,1757020242607,-1000.0,0.00025507,3]
[383598410,1757020242617,-160.0,0.00025507,2]
[383598411,1757020242628,-514.64478986,0.0002552,2]
[383598412,1757020242637,-549.83606089,0.00025538,2]
[383598413,1757020242815,-320.41720516,0.00025538,2]
[383598436,1757020245584,-2129.74673395,0.00025538,2]
[383598437,1757020245594,-670.58624095,0.00025538,2]
[383598438,1757020245605,-322.6107,0.00025538,2]
[383598439,1757020245614,-257.91778498,0.00025538,2]
[383598440,1757020245623,-156.54035496,0.0002558,2]
[383598441,1757020245633,-807.40032276,0.00025648,2]